bitfinex/quotes_SOLUSD_20251031
["timestamp","ask_amount","ask_price","bid_price","bid_amount"]
[1761895002610,1.99697274,186.05,186.01,5.37578595]
[1761895002795,1.99697274,186.05,186.01,6.04578595]
[1761895003197,1.99697274,186.05,186.02,0.67]
[1761895003397,1.99697274,186.06,186.02,0.67]
[1761895003606,3.97898342,186.05,186.02,0.67]
[1761895003909,1.99697274,186.07,186.02,0.67]
[1761895004087,3.97898083,186.06,186.02,0.67]
[1761895004288,3.97898083,186.05,186.03,5.37547707]
[1761895005009,3.97898083,186.05,186.03,6.04547707]
[1761895005187,1.99697274,186.06,186.03,6.04547707]
[1761895005703,5.97888239,186.05,186.01,6.04589753]
[1761895005904,1.99697274,186.05,186.01,6.04589753]
[1761895006098,1.99697274,186.05,186.02,0.67]
[1761895006291,3.98444106,186.04,186.02,0.67]
[1761895006702,3.98444106,186.04,186.02,6.04555347]
[1761895007082,3.98444106,186.04,186.02,5.37555347]
[1761895007303,3.12619219,186.06,186.03,0.67]
[1761895007610,3.98827934,186.05,186.03,0.67]
[1761895007797,3.98827934,186.04,186.03,0.67]
[1761895008308,3.98827934,186.04,186.03,6.04547707]
[1761895010190,3.98827934,186.04,186.03,5.37547707]
[1761895010609,3.98827934,186.04,186.03,6.04547707]
[1761895010997,3.98827934,186.04,186.03,5.37547707]
[1761895011695,3.98827934,186.04,186.03,6.04547707]
[1761895013717,7.4078538,186.04,186.03,6.04547707]
[1761895014011,7.4078538,186.04,186.03,0.67]
[1761895015415,7.40912804,186.04,186.03,6.04547707]
[1761895016310,4.01218402,186.04,186.03,6.04547707]
[1761895017610,4.01218402,186.04,186.03,18.96049695]
[1761895018003,4.01218402,186.04,186.03,80.66049695]
[1761895018201,3.81619219,186.11,186.04,9.78882769]
[1761895018415,7.41097197,186.1,186.05,3.12619219]
[1761895018616,7.41097197,186.09,186.05,3.79619219]
[1761895018793,4.01364833,186.08,186.06,0.68]
[1761895018990,4.01364833,186.07,186.06,0.68]
[1761895019810,4.01364833,186.07,186.06,9.18080253]
[1761895020017,4.01364833,186.07,186.06,18.96963022]
[1761895021208,7.42783297,186.14,186.07,9.78882769]
[1761895021514,3.12619219,186.11,186.07,0.68]
[1761895021721,4.01163777,186.1,186.07,0.68]
[1761895021909,4.01163777,186.09,186.08,5.37403267]
[1761895022427,4.01163777,186.09,186.07,0.68]
[1761895022729,4.01163777,186.08,186.07,6.0541816]
[1761895023221,4.01163777,186.08,186.07,9.18037379]
[1761895023808,4.01163777,186.08,186.05,17.24336966]
[1761895024030,3.12619219,186.1,186.06,0.68]
[1761895024206,4.01153737,186.09,186.06,0.68]
[1761895024511,0.69,186.13,186.07,3.12619219]
[1761895024826,7.13769571,186.12,186.07,3.12619219]
[1761895025124,4.01150352,186.11,186.08,0.68]
[1761895025320,4.01150352,186.1,186.08,0.68]
[1761895025516,4.01150352,186.09,186.08,6.05403267]
[1761895026024,4.01163525,186.09,186.08,6.05403267]
[1761895027235,4.01163525,186.09,186.06,6.05436611]
[1761895027525,3.12619219,186.07,186.03,0.68]
[1761895027747,3.81619219,186.07,186.03,6.05547707]
[1761895027917,4.01285095,186.06,186.03,6.05547707]
[1761895028231,3.81619219,186.07,186.03,6.05547707]
[1761895028419,4.01354554,186.06,186.03,6.05547707]
[1761895028728,3.81619219,186.07,186.03,6.05547707]
[1761895028926,4.01354596,186.06,186.03,6.05547707]
[1761895029133,3.81619219,186.07,186.03,6.05547707]
[1761895029336,4.0136446,186.06,186.03,6.05547707]
[1761895029632,3.12619219,186.07,186.04,6.05515189]
[1761895029935,3.12619219,186.07,186.01,5.37581733]
[1761895029936,3.12619219,186.05,186.01,5.37581733]
[1761895030249,3.12619219,186.03,186.01,5.37581733]
[1761895030421,4.01435035,186.02,186.01,5.37581733]
[1761895030622,4.01435035,186.02,186.0,15.84513727]
[1761895030934,3.12619219,186.04,186.0,15.84513727]
[1761895031115,4.01607219,186.03,186.0,15.84513727]
[1761895031319,4.01607219,186.02,186.0,5.37630958]
[1761895031506,3.12619219,186.03,186.01,6.05603184]
[1761895031711,4.01718517,186.02,186.01,6.05603184]
[1761895032212,4.01718517,186.02,185.99,15.36523224]
[1761895032512,3.12619219,186.03,186.0,0.68]
[1761895032714,4.01812824,186.02,186.0,0.68]
[1761895032928,3.12619219,186.04,186.0,0.68]
[1761895033107,4.01812782,186.03,186.0,0.68]
[1761895033309,4.01812782,186.02,186.0,0.68]
[1761895033533,3.12619219,186.04,186.0,0.68]
[1761895033726,4.01869123,186.03,186.01,5.37605505]
[1761895033919,4.01869123,186.02,186.01,5.37605505]
[1761895034519,4.01869123,186.02,186.01,6.05605505]
[1761895036030,4.01869123,186.02,186.01,18.97107493]
[1761895036625,3.12619219,186.07,186.01,18.97107493]
[1761895036926,7.14732568,186.06,186.02,0.68]
[1761895037124,4.02113349,186.05,186.02,0.68]
[1761895037337,4.02113349,186.04,186.02,0.68]
[1761895037532,4.02113349,186.03,186.02,0.71]
[1761895038113,4.02113349,186.03,186.02,6.08576604]
[1761895039440,4.02113349,186.03,186.02,9.21195823]
[1761895040141,4.02113349,186.03,186.02,6.08576604]
[1761895040519,4.02113349,186.03,186.02,9.21195823]
[1761895040736,4.02113349,186.03,186.02,6.08576604]
[1761895042339,4.02113349,186.03,186.02,9.21195823]
[1761895042641,4.02113349,186.03,186.02,6.08576604]
[1761895045328,4.02113349,186.03,186.02,0.71]
[1761895045735,4.02113349,186.03,186.01,5.37602665]
[1761895045937,4.02113349,186.02,186.01,5.37602665]
[1761895046122,4.02113349,186.02,186.01,6.08602665]
[1761895048032,4.02449139,186.02,186.01,6.08602665]
[1761895051435,4.02449139,186.02,186.01,0.71]
[1761895051636,4.02449139,186.02,186.0,5.37627941]
[1761895051842,7.15068358,186.01,185.99,0.2]
[1761895052149,7.15068358,186.01,185.99,0.91]
[1761895052150,4.02449139,186.0,185.99,0.91]
[1761895052527,4.73449139,186.0,185.99,0.2]
[1761895052728,4.02449139,186.0,185.99,0.2]
[1761895055534,4.02449139,186.0,185.99,5.57663315]
[1761895056033,4.02449139,186.0,185.99,0.2]
[1761895056228,7.15068358,186.0,185.99,0.2]
[1761895056438,7.86068358,186.0,185.99,0.2]
[1761895057945,7.15068358,186.0,185.99,0.2]
[1761895058143,4.02449139,186.0,185.99,0.2]
[1761895062354,4.02449139,186.0,185.99,9.41282534]
[1761895062550,3.83619219,186.03,185.99,6.28663315]
[1761895062758,4.02054361,186.02,185.99,5.57663315]
[1761895062954,4.02054361,186.01,185.99,5.57663315]
[1761895063251,3.12619219,186.05,186.0,3.83619219]
[1761895063458,4.0207246,186.04,186.0,3.83619219]
[1761895063657,4.0207246,186.03,186.02,3.12619219]
[1761895063838,4.0207246,186.03,186.02,3.83619219]
[1761895064229,4.0207246,186.03,186.02,9.21195823]
[1761895064434,4.0207246,186.03,186.02,67.78576604]
[1761895064847,4.0207246,186.03,186.02,67.07576604]
[1761895065042,4.0207246,186.03,186.02,61.7]
[1761895066044,7.85691679,186.03,186.02,61.7]
[1761895066445,7.85691679,186.03,186.0,5.37629535]
[1761895066750,4.0207246,186.02,186.0,5.37629535]
[1761895067057,4.0207246,186.01,186.0,5.37629535]
[1761895067257,4.0207246,186.01,185.99,6.28660445]
[1761895067456,3.12619219,186.04,185.99,6.28660445]
[1761895067658,4.02268716,186.03,185.99,6.28660445]
[1761895067862,4.02268716,186.02,185.99,8.70279664]
[1761895068046,4.02268716,186.01,186.0,0.71]
[1761895068358,0.71,186.04,186.0,0.71]
[1761895068559,4.02328672,186.03,186.0,0.71]
[1761895068864,4.02328672,186.02,186.0,0.71]
[1761895069163,3.83619219,186.05,186.0,0.71]
[1761895069164,4.02426959,186.01,186.0,0.71]
[1761895069363,4.02426959,186.01,186.0,6.08634408]
[1761895069740,4.02426959,186.01,186.0,8.087291]
[1761895070163,4.02426959,186.01,186.0,6.08634408]
[1761895070852,4.02426959,186.01,186.0,8.087291]
[1761895071053,4.02531904,186.01,186.0,8.087291]
[1761895073151,4.02531904,186.01,186.0,17.87611869]
[1761895073470,4.02531904,186.01,186.0,15.87517177]
[1761895073664,4.02531904,186.01,186.0,17.87611869]
[1761895074170,4.02531904,186.01,186.0,15.87517177]
[1761895074348,4.02531904,186.01,186.0,5.37634408]
[1761895074856,4.02531904,186.01,185.99,9.98882769]
[1761895074857,4.02531904,186.01,185.99,15.36543064]
[1761895075168,4.02531904,186.0,185.99,16.07543064]
[1761895075770,4.02531904,186.0,185.99,77.77543064]
[1761895077263,4.02531904,186.0,185.99,79.77637756]
[1761895082551,4.02531904,186.0,185.99,61.9]
[1761895082870,10.10166312,186.0,185.99,0.2]
[1761895083072,12.10261004,186.0,185.99,0.2]
[1761895083462,15.53823282,186.0,185.99,0.2]
[1761895083968,10.16188874,186.0,185.99,0.2]
[1761895085150,15.53823282,186.0,185.99,0.2]
[1761895086079,39.74930188,186.0,185.99,0.2]
[1761895086586,19.15730188,186.0,185.99,0.2]
[1761895086876,41.90534553,186.0,185.99,0.2]
[1761895087075,21.31334553,186.0,185.99,0.2]
[1761895087279,15.69332955,186.0,185.99,0.2]
[1761895087580,36.13023282,186.0,185.99,0.2]
[1761895087799,39.74930188,186.0,185.99,0.2]
[1761895096868,19.15730188,186.0,185.99,0.2]
[1761895097163,20.592,185.98,185.96,0.2]
[1761895097482,9.46188874,185.97,185.96,0.2]
[1761895097662,13.7409578,185.97,185.96,0.2]
[1761895097869,15.89723391,185.97,185.96,0.2]
[1761895098069,13.7409578,185.97,185.96,0.2]
[1761895098267,19.11816917,185.97,185.96,0.2]
[1761895099285,21.27456152,185.97,185.96,0.2]
[1761895100385,19.11816917,185.97,185.96,0.2]
[1761895102901,19.11816917,185.97,185.96,0.2]
[1761895104594,19.11816917,185.97,185.93,0.2]
[1761895104595,40.56498529,185.97,185.93,0.2]
[1761895104898,10.0047346,185.94,185.93,0.2]
[1761895105190,14.03005364,185.94,185.93,0.2]
[1761895105381,14.69005364,185.94,185.93,0.2]
[1761895105576,10.06339799,185.94,185.93,0.2]
[1761895105786,20.06813259,185.94,185.93,0.2]
[1761895106474,10.06339799,185.94,185.93,0.2]
[1761895106694,11.40434491,185.94,185.93,0.2]
[1761895106891,12.06434491,185.94,185.93,0.2]
[1761895109086,6.68626596,185.94,185.93,0.2]
[1761895109278,24.61731904,185.94,185.93,0.92]
[1761895109601,4.02531904,185.94,185.93,0.92]
[1761895110987,6.02626596,185.94,185.93,0.92]
[1761895111698,11.40434491,185.94,185.93,0.2]
[1761895111897,12.12434491,185.94,185.93,0.2]
[1761895112300,11.40434491,185.94,185.93,0.2]
[1761895113292,12.12434491,185.94,185.93,0.2]
[1761895113498,11.40434491,185.94,185.93,0.2]
[1761895115598,12.12434491,185.94,185.93,0.2]
[1761895115808,32.71634491,185.94,185.93,0.2]
[1761895116499,29.99539799,185.94,185.93,0.2]
[1761895116806,31.99634491,185.94,185.93,0.2]
[1761895118189,26.61826596,185.94,185.93,0.92]
[1761895118393,26.61826596,185.94,185.93,0.2]
[1761895118394,31.99634491,185.94,185.93,0.2]
[1761895118703,26.61826596,185.94,185.93,0.92]
[1761895118902,6.02626596,185.94,185.93,0.92]
[1761895119682,6.02626596,185.94,185.93,0.2]
[1761895120006,20.12813259,185.94,185.93,0.2]
[1761895120201,31.99634491,185.94,185.93,0.2]
[1761895120507,31.99634491,185.94,185.93,0.92]
[1761895120691,31.99634491,185.94,185.93,0.2]
[1761895120895,6.02626596,185.94,185.93,0.92]
[1761895121499,11.40434491,185.94,185.93,0.2]
[1761895123108,6.02626596,185.94,185.93,0.92]
[1761895123909,4.02531904,185.94,185.93,6.2983682]
[1761895126797,4.02531904,185.94,185.93,18.08814281]
[1761895131306,4.02531904,185.94,185.93,19.21524094]
[1761895132515,6.74120789,186.01,185.93,32.66116144]
[1761895132838,4.02478126,186.0,185.96,3.12804505]
[1761895133021,4.02478126,185.99,185.95,9.78882769]
[1761895133318,4.02478126,185.98,185.96,3.12804505]
[1761895133518,3.12804505,186.01,185.96,3.12804505]
[1761895133519,4.02478126,185.97,185.96,3.84804505]
[1761895133724,4.02478126,185.97,185.96,3.12804505]
[1761895134025,4.02478126,185.97,185.95,74.61687274]
[1761895134320,4.02478126,185.96,185.95,79.99466246]
[1761895135323,4.02478126,185.96,185.95,80.71466246]
[1761895137839,3.61316284,186.03,185.95,80.71466246]
[1761895138000,4.52773684,186.09,186.02,3.12804505]
[1761895138196,3.62014868,186.1,186.04,3.12804505]
[1761895138413,6.74819373,186.1,186.05,3.12804505]
[1761895138620,3.12804505,186.1,186.05,3.12804505]
[1761895138808,3.12804505,186.1,186.06,0.71]
[1761895139519,3.12804505,186.09,186.06,0.71]
[1761895140223,3.12804505,186.09,186.06,6.08455946]
[1761895141305,3.12804505,186.09,186.06,0.71]
[1761895141711,3.12804505,186.09,186.06,6.08447743]
[1761895141907,3.12804505,186.1,186.07,6.08403973]
[1761895142308,3.12804505,186.14,186.09,3.12804505]
[1761895142509,0.1,186.15,186.12,3.12804505]
[1761895142715,0.1,186.15,186.13,3.12804505]
[1761895142909,0.1,186.15,186.14,3.83804505]
[1761895143124,0.1,186.15,186.14,0.71]
[1761895143802,0.1,186.15,186.14,9.21034546]
[1761895144005,0.1,186.15,186.14,18.99917315]
[1761895145231,0.1,186.23,186.14,86.26448155]
[1761895145439,0.1,186.23,186.22,12.91687274]
[1761895145808,0.1,186.23,186.22,18.99686522]
[1761895146028,0.1,186.23,186.22,15.86882017]
[1761895146332,0.1,186.23,186.22,9.20803753]
[1761895147932,0.1,186.25,186.22,9.20803753]
[1761895147933,0.1,186.25,186.24,9.78882769]
[1761895148110,0.1,186.25,186.24,33.50887274]
[1761895148425,0.1,186.25,186.24,31.09082769]
[1761895148752,9.26720857,186.25,186.18,0.71]
[1761895149032,3.12804505,186.21,186.18,0.71]
[1761895149326,0.77,186.25,186.18,3.83804505]
[1761895149327,3.12804505,186.23,186.18,3.83804505]
[1761895149530,0.1,186.25,186.18,0.71]
[1761895149704,3.12804505,186.22,186.19,0.71]
[1761895150117,0.1,186.25,186.2,3.12804505]
[1761895150319,3.12804505,186.24,186.2,0.71]
[1761895150627,3.12804505,186.21,186.18,0.71]
[1761895150832,3.12804505,186.21,186.17,5.37122956]
[1761895151129,3.12804505,186.2,186.17,5.37122956]
[1761895151340,3.12804505,186.21,186.18,0.71]
[1761895151710,3.12804505,186.2,186.18,0.71]
[1761895152521,3.12804505,186.19,186.12,3.12804505]
[1761895152734,3.12804505,186.17,186.13,10.49882769]
[1761895152914,3.12804505,186.16,186.13,0.71]
[1761895153115,3.12804505,186.14,186.08,0.71]
[1761895153324,3.12804505,186.13,186.09,9.78882769]
[1761895153525,3.12804505,186.12,186.08,6.08403267]
[1761895153844,3.12804505,186.17,186.11,3.12804505]
[1761895154038,3.12804505,186.16,186.11,3.12804505]
[1761895154342,3.12804505,186.16,186.12,0.71]
[1761895154643,3.12804505,186.15,186.12,0.71]
[1761895154839,6.04118172,186.18,186.12,0.71]
[1761895155012,3.12804505,186.15,186.12,0.71]
[1761895155912,0.67,186.22,186.14,3.12804505]
[1761895156115,3.12804505,186.18,186.13,8.5006341]
[1761895156331,3.12804505,186.18,186.13,5.37258905]
[1761895156630,3.12804505,186.18,186.14,0.71]
[1761895157026,20.592,186.2,186.14,0.71]
[1761895157228,3.12804505,186.18,186.14,0.71]
[1761895157732,3.12804505,186.16,186.13,5.37258905]
[1761895157938,3.12804505,186.15,186.11,6.04290376]
[1761895158436,3.12804505,186.15,186.12,0.67]
[1761895158738,3.12804505,186.16,186.12,0.67]
[1761895159321,7.67851743,186.16,186.13,5.37258905]
[1761895159932,0.66,186.19,186.13,6.04258905]
[1761895160237,7.67851743,186.18,186.14,0.67]
[1761895161718,7.67851743,186.18,186.14,6.042127]
[1761895163931,6.03061551,186.2,186.14,6.042127]
[1761895164115,7.67851743,186.18,186.14,6.042127]
[1761895166722,7.67851743,186.16,186.11,7.67851743]
[1761895166930,7.67851743,186.15,186.11,71.48882769]
[1761895167216,7.67851743,186.15,186.11,72.15882769]
[1761895167434,7.67851743,186.15,186.12,0.67]
[1761895167829,7.67851743,186.15,186.12,6.04281457]
[1761895168025,5.37095151,186.19,186.12,5.37281457]
[1761895168248,7.67851743,186.17,186.13,0.67]
[1761895168446,7.67851743,186.16,186.12,5.37281457]
[1761895168833,7.67851743,186.16,186.12,6.02281457]
[1761895169019,7.67851743,186.16,186.13,0.65]
[1761895169420,7.67851743,186.16,186.13,6.02241145]
[1761895169946,7.67851743,186.16,186.13,5.37241145]
[1761895170827,7.67851743,186.15,186.11,77.51174166]
[1761895171026,7.67851743,186.15,186.12,0.65]
[1761895171619,7.67851743,186.15,186.12,6.02273604]
[1761895173145,7.67851743,186.16,186.12,6.02273604]
[1761895173319,3.9769475,186.15,186.12,6.02273604]
[1761895174172,7.67851743,186.14,186.11,67.07315532]
[1761895174471,7.67851743,186.12,186.07,0.65]
[1761895174761,7.67851743,186.12,186.08,0.65]
[1761895175149,25.96375443,186.16,186.08,8.32851743]
[1761895175459,11.66041545,186.15,186.1,7.67851743]
[1761895175663,3.98189802,186.14,186.1,7.67851743]
[1761895175865,7.67851743,186.15,186.11,0.65]
[1761895176161,3.98154688,186.14,186.12,13.05139514]
[1761895176461,28.27051743,186.19,186.13,8.32851743]
[1761895176663,7.67851743,186.17,186.13,0.65]
[1761895176968,11.6619738,186.16,186.13,0.65]
[1761895177159,3.98345637,186.15,186.13,0.65]
[1761895177358,7.67851743,186.16,186.13,0.65]
[1761895177568,3.98599807,186.15,186.13,0.65]
[1761895177747,7.67851743,186.16,186.13,0.65]
[1761895178063,3.98599765,186.15,186.14,15.1611281]
[1761895178255,7.67851743,186.19,186.15,9.78882769]
[1761895178448,3.98830664,186.18,186.16,0.65]
[1761895178667,3.98830664,186.17,186.16,10.43882769]
[1761895178862,7.67851743,186.2,186.16,10.43882769]
[1761895179060,11.66655335,186.19,186.17,0.65]
[1761895179364,3.98803592,186.18,186.17,0.65]
[1761895179566,7.10926282,186.18,186.16,9.78882769]
[1761895179868,3.98803592,186.17,186.16,10.43882769]
[1761895180051,3.98803592,186.17,186.16,15.16055093]
[1761895180453,3.98803592,186.17,186.16,15.81055093]
[1761895182847,3.98803592,186.17,186.15,5.37196361]
[1761895183049,3.98803592,186.16,186.15,6.02196361]
[1761895183240,3.98803592,186.16,186.15,5.37196361]
[1761895183865,3.98803592,186.16,186.15,6.02196361]
[1761895184971,7.10926282,186.16,186.14,5.37229232]
[1761895185150,7.10926282,186.15,186.14,15.16112001]
[1761895185372,3.98803592,186.15,186.14,10.43882769]
[1761895185559,7.10926282,186.15,186.14,10.43882769]
[1761895185766,7.10926282,186.15,186.14,15.8111281]
[1761895185947,3.98803592,186.15,186.14,15.8111281]
[1761895187367,3.98803592,186.15,186.14,6.02230041]
[1761895187558,7.10926282,186.15,186.12,9.78882769]
[1761895187758,7.10926282,186.14,186.12,9.78882769]
[1761895187966,3.98803592,186.13,186.12,15.8117054]
[1761895188376,7.10926282,186.13,186.11,61.7]
[1761895188676,7.10926282,186.12,186.11,62.35]
[1761895189358,7.10926282,186.12,186.11,67.72314264]
[1761895191355,5.98711561,186.12,186.11,67.72314264]
[1761895193173,5.98711561,186.12,186.11,6.02314264]
[1761895193362,3.98803592,186.12,186.11,6.02314264]
[1761895196453,3.98803592,186.12,186.11,15.81197033]
[1761895201594,3.98803592,186.12,186.07,0.67]
[1761895201595,6.67711561,186.12,186.07,0.67]
[1761895201761,3.98803592,186.11,186.08,15.16286036]
[1761895201962,5.98711561,186.1,186.08,15.16286036]
[1761895202274,3.98803592,186.09,186.08,15.83286036]
[1761895202579,3.98803592,186.09,186.08,15.16286036]
[1761895203380,3.98803592,186.09,186.08,15.83286036]
[1761895203581,5.98711561,186.09,186.07,61.7]
[1761895203783,5.98711561,186.08,186.07,61.7]
[1761895203994,0.69,186.13,186.07,15.16308002]
[1761895204288,7.39259669,186.12,186.1,9.78882769]
[1761895204468,4.02527913,186.11,186.1,9.78882769]
[1761895205180,4.02527913,186.11,186.1,10.45882769]
[1761895205863,1.99907969,186.14,186.1,10.45882769]
[1761895206065,4.02414953,186.13,186.12,9.78882769]
[1761895206382,4.02414953,186.13,186.12,15.1617054]
[1761895206580,4.02414953,186.13,186.12,15.8317054]
[1761895207085,6.02322922,186.13,186.1,5.37317178]
[1761895207278,6.02322922,186.12,186.1,15.16199947]
[1761895207579,4.02414953,186.11,186.1,5.37317178]
[1761895208568,4.02414953,186.11,186.1,0.67]
[1761895209285,1.99907969,186.15,186.11,9.78882769]
[1761895209464,4.02411687,186.14,186.11,9.78882769]
[1761895209666,1.99907969,186.19,186.14,9.78882769]
[1761895209970,9.35626548,186.18,186.14,9.78882769]
[1761895210289,1.99907969,186.16,186.14,10.45882769]
[1761895210581,4.023725,186.15,186.14,10.45882769]
[1761895210787,4.023725,186.15,186.14,15.1611281]
[1761895211585,4.023725,186.15,186.14,15.8311281]
[1761895214593,1.99907969,186.2,186.14,31.26095883]
[1761895214798,4.02251355,186.19,186.15,2.66907969]
[1761895215092,22.59107969,186.21,186.15,2.66907969]
[1761895215093,22.59107969,186.21,186.17,9.78882769]
[1761895215295,5.3283248,186.2,186.17,9.78882769]
[1761895215470,1.99907969,186.2,186.17,10.45882769]
[1761895215668,1.99907969,186.2,186.18,5.3711462]
[1761895216286,1.99907969,186.21,186.18,6.0411462]
[1761895217394,20.592,186.23,186.19,10.45882769]
[1761895217589,1.99907969,186.22,186.19,10.45882769]
[1761895217793,1.99907969,186.22,186.2,5.37056928]
[1761895218297,1.99907969,186.24,186.21,9.78882769]
[1761895218482,1.99907969,186.24,186.21,10.45882769]
[1761895218886,0.1,186.25,186.22,0.67]
[1761895219290,0.1,186.25,186.23,9.78882769]
[1761895219597,0.1,186.25,186.24,10.45882769]
[1761895219777,0.1,186.25,186.24,17.82732318]
[1761895220901,1e-08,186.25,186.24,18.36426476]
[1761895221107,1e-08,186.26,186.25,10.45882769]
[1761895221308,1e-08,186.26,186.25,12.45790738]
[1761895221692,1e-08,186.26,186.25,17.82703489]
[1761895225184,1e-08,186.26,186.25,79.81135803]
[1761895226209,2.67907969,186.35,186.27,9.78882769]
[1761895226410,2.67907969,186.35,186.31,9.78882769]
[1761895226589,2.67907969,186.35,186.31,71.48882768]
[1761895226908,0.68,186.34,186.31,71.48882768]
[1761895227203,0.68,186.34,186.32,5.36711034]
[1761895227204,1.99907969,186.33,186.32,5.36711034]
[1761895227584,2.67907969,186.33,186.31,61.69999999]
[1761895227788,2.67907969,186.32,186.25,61.69999999]
[1761895228108,1.99907969,186.28,186.22,17.82789986]
[1761895228303,1.99907969,186.27,186.22,15.15882017]
[1761895228488,1.99907969,186.26,186.22,15.15882017]
[1761895228687,2.67907969,186.26,186.22,28.58380137]
[1761895229700,1.99907969,186.26,186.22,28.58380137]
[1761895230004,20.592,186.31,186.2,9.78882769]
[1761895230005,1.99907969,186.23,186.2,9.78882769]
[1761895230301,1.99907969,186.23,186.2,15.15939697]
[1761895230608,1.99907969,186.22,186.2,15.15939697]
[1761895230812,1.99907969,186.23,186.2,15.15939697]
[1761895231308,1.99907969,186.25,186.22,9.78882769]
[1761895231511,1.99907969,186.24,186.22,9.78882769]
[1761895232393,1.99907969,186.24,186.23,5.36970412]
[1761895233014,2.68907969,186.25,186.23,5.36970412]
[1761895233205,1.99907969,186.24,186.23,5.36970412]
[1761895233401,1.99907969,186.25,186.23,6.02970412]
[1761895233610,1.99907969,186.25,186.23,5.36970412]
[1761895234404,1.99907969,186.25,186.23,18.79396444]
[1761895234801,2.68907969,186.25,186.23,5.36970412]
[1761895235407,1.99907969,186.25,186.23,5.36970412]
[1761895235602,2.68907969,186.25,186.2,13.42589056]
[1761895235910,2.68907969,186.24,186.21,15.15910855]
[1761895236114,1.99907969,186.23,186.21,15.15910855]
[1761895236415,1.99907969,186.24,186.21,29.24481071]
[1761895236906,1.99907969,186.24,186.21,28.58481071]
[1761895239108,1.99907969,186.24,186.21,29.24481071]
[1761895239591,0.69,186.26,186.21,29.24481071]
[1761895239592,1.99907969,186.25,186.21,29.24481071]
[1761895240613,2.68907969,186.25,186.21,29.24481071]
[1761895242527,1.99907969,186.24,186.21,29.24481071]
[1761895244323,1.99907969,186.26,186.23,9.78882769]
[1761895244828,1.99907969,186.25,186.23,9.78882769]
[1761895245432,1.99907969,186.25,186.24,5.3694158]
[1761895249023,7.99631876,186.3,186.24,5.3694158]
[1761895249203,5.99656032,186.29,186.25,10.44882769]
[1761895249527,1.99907969,186.3,186.25,12.44790738]
[1761895249708,1.99907969,186.3,186.27,9.78882769]
[1761895250223,1.99907969,186.3,186.28,0.66]
[1761895250718,1.99907969,186.3,186.27,9.78882769]
[1761895251113,1.99907969,186.3,186.27,10.44882769]
[1761895251314,3.11759823,186.3,186.27,10.44882769]
[1761895252221,3.11759823,186.3,186.27,9.78882769]
[1761895253106,0.69,186.31,186.28,5.36826283]
[1761895253309,7.11958599,186.3,186.28,5.36826283]
[1761895253499,3.11759823,186.3,186.28,5.36826283]
[1761895255102,3.11759823,186.3,186.28,6.02826283]
[1761895255528,3.11759823,186.3,186.28,5.36826283]
[1761895255826,3.11759823,186.31,186.28,6.02826283]
[1761895256027,3.11759823,186.31,186.28,19.4489199]
[1761895256411,3.11759823,186.31,186.29,0.66]
[1761895256715,3.11759823,186.31,186.28,18.7889199]
[1761895256929,3.11759823,186.31,186.28,19.4489199]
[1761895259029,3.11759823,186.31,186.28,19.4989199]
[1761895260235,3.11759823,186.3,186.28,18.7889199]
[1761895260463,3.11759823,186.3,186.28,5.36826283]
[1761895260618,25.95835691,186.35,186.28,5.36826283]
[1761895260929,3.11759823,186.29,186.28,5.36826283]
[1761895261104,3.11759823,186.3,186.28,5.36826283]
[1761895261306,4.01286256,186.29,186.28,5.36826283]
[1761895263412,4.01286256,186.29,186.28,6.07826283]
[1761895263612,4.01286256,186.29,186.28,5.36826283]
[1761895265943,7.79046079,186.29,186.13,5.61339614]
[1761895266265,3.11759823,186.23,186.2,9.78882769]
[1761895266556,3.11759823,186.24,186.2,9.78882769]
[1761895266931,3.11759823,186.24,186.22,9.78882769]
[1761895267445,3.11759823,186.24,186.23,5.36970412]
[1761895269348,3.11759823,186.24,186.22,15.15882017]
[1761895270940,3.11759823,186.23,186.22,15.15882017]
[1761895271652,3.11759823,186.23,186.2,5.37046677]
[1761895271653,7.79645236,186.23,186.2,5.37046677]
[1761895271858,3.11759823,186.21,186.2,5.37046677]
[1761895272042,3.11759823,186.22,186.2,5.37046677]
[1761895273347,3.61686922,186.28,186.2,18.79688997]
[1761895273660,20.592,186.29,186.21,10.49882769]
[1761895273661,3.11759823,186.25,186.21,10.49882769]
[1761895273957,4.01891549,186.24,186.21,10.49882769]
[1761895274256,4.01891549,186.23,186.21,9.78882769]
[1761895274461,3.11759823,186.25,186.23,5.36970412]
[1761895274765,4.01863907,186.24,186.23,5.36970412]
[1761895275355,7.1362373,186.24,186.23,5.36970412]
[1761895275561,7.1362373,186.24,186.22,5.36996079]